fUSD/lending_fUSD_20240620
["ID","MTS","AMOUNT","RATE_DAILY","PERIOD"]
[329935393,1718845847378,-1789.65734338,0.00013799,2]
[329935394,1718845847389,-150.0,0.00013801,2]
[329935395,1718845847401,-150.0,0.00013801,2]
[329935396,1718845847411,-150.0,0.00013802,2]
[329935397,1718845847420,-150.0,0.00013804,2]
[329935398,1718845847432,-150.0,0.00013805,2]
[329935399,1718845847442,-1789.65734338,0.00013811,2]
[329935400,1718845847453,-150.0,0.00013812,2]
[329935401,1718845847462,-150.0,0.00013815,2]
[329935402,1718845847475,-150.0,0.00013816,2]
[329935403,1718845847485,-150.0,0.00013816,2]
[329935404,1718845847495,-150.0,0.00013816,2]
[329935405,1718845847505,-150.0,0.00013816,2]
[329935406,1718845847514,-150.0,0.00013816,2]
[329935407,1718845847524,-150.0,0.00013818,2]
[329935408,1718845847534,-150.0,0.00013818,2]
[329935409,1718845847543,-150.0,0.00013819,2]
[329935410,1718845847552,-150.0,0.0001382,2]
[329935411,1718845847562,-150.0,0.00013823,2]
[329935412,1718845847572,-171.31662171,0.00013825,2]
[329935413,1718845847581,-150.0,0.0001383,2]
[329935414,1718845847591,-150.0,0.00013832,2]
[329935415,1718845847602,-150.0,0.00013832,2]
[329935416,1718845847613,-150.0,0.00013833,2]
[329935417,1718845847623,-150.0,0.00013835,2]
[329935418,1718845847634,-150.0,0.00013835,2]
[329935419,1718845847644,-150.0,0.00013835,2]
[329935420,1718845847653,-150.0,0.00013837,2]
[329935421,1718845847662,-150.0,0.00013839,2]
[329935422,1718845847672,-150.0,0.00013843,2]
[329935423,1718845847682,-150.0,0.00013848,2]
[329935424,1718845847692,-150.0,0.0001385,2]
[329935425,1718845847701,-150.0,0.00013853,2]
[329935426,1718845847711,-150.0,0.00013854,2]
[329935427,1718845847720,-1789.65734338,0.00013855,2]
[329935428,1718845847730,-150.0,0.00013857,2]
[329935429,1718845847739,-150.0,0.0001386,2]
[329935430,1718845847749,-150.0,0.00013865,2]
[329935431,1718845847758,-200.0,0.00013874,2]
[329935432,1718845847768,-150.0,0.00013875,2]
[329935433,1718845847777,-500.0,0.00013887,2]
[329935434,1718845847787,-200.0,0.00013888,2]
[329935435,1718845847797,-1000.0,0.00013888,2]
[329935436,1718845847807,-500.0,0.00013888,2]
[329935437,1718845847816,-500.0,0.00013888,2]
[329935438,1718845847831,-200.0,0.00013888,2]
[329935439,1718845847842,-150.0,0.00013888,2]
[329935440,1718845847854,-150.0,0.0001389,2]
[329935441,1718845847865,-150.0,0.0001389,2]
[329935442,1718845847874,-174.0,0.0001389,3]
[329935443,1718845847883,-150.0,0.00013891,2]
[329935444,1718845847892,-150.0,0.00013892,2]
[329935445,1718845847902,-150.0,0.00013896,2]
[329935446,1718845847911,-150.0,0.00013897,2]
[329935447,1718845847921,-150.0,0.00013899,2]
[329935448,1718845847932,-171.31662171,0.000139,2]
[329935449,1718845847941,-753.4814338,0.000139,2]
[329935450,1718845847951,-195.03165963,0.000139,2]
[329935451,1718845847961,-1789.65734338,0.000139,2]
[329935452,1718845847971,-150.0,0.00013902,2]
[329935453,1718845847981,-150.0,0.00013902,2]
[329935454,1718845847992,-150.0,0.00013904,2]
[329935455,1718845848002,-150.0,0.00013911,2]
[329935456,1718845848012,-150.0,0.00013913,2]
[329935457,1718845848022,-150.0,0.00013914,2]
[329935458,1718845848032,-150.0,0.00013924,2]
[329935459,1718845848042,-150.0,0.00013932,2]
[329935460,1718845848051,-150.0,0.00013934,2]
[329935461,1718845848061,-150.0,0.00013941,2]
[329935462,1718845848071,-150.0,0.00013941,2]
[329935463,1718845848080,-150.0,0.00013941,2]
[329935464,1718845848090,-150.0,0.00013943,2]
[329935465,1718845848101,-150.0,0.00013947,2]
[329935466,1718845848111,-150.0,0.00013948,2]
[329935467,1718845848121,-150.0,0.00013949,2]
[329935468,1718845848130,-150.0,0.00013956,2]
[329935469,1718845848140,-150.0,0.0001396,2]
[329935470,1718845848150,-150.0,0.00013967,2]
[329935471,1718845848159,-150.0,0.00013968,2]
[329935472,1718845848169,-172.20017913,0.0001397,2]
[329935473,1718845848179,-27237.81266037,0.00013971,2]
[329935474,1718845848188,-500.0,0.00013972,2]
[329935475,1718845848198,-574.37,0.00013972,2]
[329935476,1718845848208,-500.0,0.00013972,2]
[329935477,1718845848217,-607.95,0.00013972,2]
[329935478,1718845848227,-330.87296733,0.00013972,2]
[329935479,1718845848236,-613.07,0.00013972,2]
[329935480,1718845848246,-500.0,0.00013972,2]
[329935481,1718845848327,-500.0,0.00013972,2]
[329935482,1718845848336,-557.19,0.00013972,2]
[329935483,1718845848348,-548.17,0.00013972,2]
[329935484,1718845848356,-500.0,0.00013972,2]
[329935485,1718845848365,-711.7,0.00013972,2]
[329935486,1718845848374,-500.0,0.00013972,2]
[329935487,1718845848388,-500.0,0.00013972,2]
[329935488,1718845848397,-500.0,0.00013972,2]
[329935489,1718845848406,-500.0,0.00013972,2]
[329935490,1718845848416,-500.0,0.00013972,2]
[329935491,1718845848427,-500.0,0.00013972,2]
[329935492,1718845848437,-500.0,0.00013972,2]
[329935493,1718845848446,-500.0,0.00013972,2]
[329935494,1718845848455,-500.0,0.00013972,2]
[329935495,1718845848465,-500.0,0.00013972,2]
[329935496,1718845848474,-512.43,0.00013972,2]
[329935497,1718845848483,-500.0,0.00013972,2]
[329935498,1718845848493,-500.0,0.00013972,2]
[329935499,1718845848501,-500.0,0.00013972,2]
[329935500,1718845848511,-500.0,0.00013972,2]
[329935501,1718845848520,-500.0,0.00013972,2]
[329935502,1718845848534,-500.0,0.00013972,2]
[329935503,1718845848544,-500.0,0.00013972,2]
[329935504,1718845848553,-500.0,0.00013972,2]
[329935505,1718845848564,-500.0,0.00013972,2]
[329935506,1718845848573,-540.54,0.00013972,2]
[329935507,1718845848583,-500.0,0.00013972,2]
[329935508,1718845848593,-500.0,0.00013972,2]
[329935509,1718845848604,-500.0,0.00013972,2]
[329935510,1718845848613,-500.0,0.00013972,2]
[329935511,1718845848623,-500.0,0.00013972,2]
[329935512,1718845848632,-500.0,0.00013972,2]
[329935513,1718845848642,-500.0,0.00013972,2]
[329935514,1718845848652,-1422.53,0.00013972,2]
[329935515,1718845848662,-643.31,0.00013972,2]
[329935516,1718845848671,-500.0,0.00013972,2]
[329935517,1718845848681,-500.0,0.00013972,2]
[329935518,1718845848690,-1440.92,0.00013972,2]
[329935519,1718845848700,-500.0,0.00013972,2]
[329935520,1718845848710,-500.0,0.00013972,2]
[329935521,1718845848719,-500.0,0.00013972,2]
[329935522,1718845848729,-500.0,0.00013972,2]
[329935523,1718845848738,-500.0,0.00013972,2]
[329935524,1718845848748,-262.52406973,0.00013972,2]
[329935525,1718845848758,-547.25,0.00013972,2]
[329935526,1718845848768,-500.0,0.00013972,2]
[329935527,1718845848778,-616.77,0.00013972,2]
[329935528,1718845848788,-500.0,0.00013972,2]
[329935529,1718845848797,-612.6,0.00013972,2]
[329935530,1718845848807,-793.15,0.00013972,2]
[329935531,1718845848817,-511.17,0.00013972,2]
[329935532,1718845848826,-500.0,0.00013972,2]
[329935533,1718845848836,-734.63,0.00013972,2]
[329935534,1718845848848,-967.49,0.00013972,2]
[329935535,1718845848858,-500.0,0.00013972,2]
[329935536,1718845848867,-500.0,0.00013972,2]
[329935537,1718845848876,-696.96,0.00013972,2]
[329935538,1718845848885,-500.0,0.00013972,2]
[329935539,1718845848894,-500.0,0.00013972,2]
[329935540,1718845848904,-576.52,0.00013972,2]
[329935541,1718845848913,-500.0,0.00013972,2]
[329935542,1718845848922,-1215.45,0.00013972,2]
[329935543,1718845848932,-500.0,0.00013972,2]
[329935544,1718845848941,-1395.56,0.00013972,2]
[329935545,1718845848951,-500.0,0.00013972,2]
[329935546,1718845848961,-553.96,0.00013972,2]
[329935547,1718845848971,-500.0,0.00013972,2]
[329935548,1718845848981,-1244.83,0.00013972,2]
[329935549,1718845848990,-500.0,0.00013972,2]
[329935550,1718845849000,-608.61,0.00013972,2]
[329935551,1718845849010,-1094.38,0.00013972,2]
[329935552,1718845849019,-500.0,0.00013972,2]
[329935553,1718845849029,-617.2,0.00013972,2]
[329935554,1718845849038,-989.82,0.00013972,2]
[329935555,1718845849048,-500.0,0.00013972,2]
[329935556,1718845849058,-818.95,0.00013972,2]
[329935557,1718845849067,-730.63,0.00013972,2]
[329935558,1718845849077,-500.0,0.00013972,2]
[329935559,1718845849087,-500.0,0.00013972,2]
[329935560,1718845849098,-695.9,0.00013972,2]
[329935561,1718845849108,-863.29,0.00013972,2]
[329935562,1718845849118,-500.0,0.00013972,2]
[329935563,1718845849127,-1118.49,0.00013972,2]
[329935564,1718845849137,-500.0,0.00013972,2]
[329935565,1718845849146,-500.0,0.00013972,2]
[329935566,1718845849155,-1042.26,0.00013972,2]
[329935567,1718845849165,-955.0,0.00013972,2]
[329935568,1718845849175,-500.0,0.00013972,2]
[329935569,1718845849184,-500.0,0.00013972,2]
[329935570,1718845849194,-974.53,0.00013972,2]
[329935571,1718845849203,-500.0,0.00013972,2]
[329935572,1718845849213,-500.0,0.00013972,2]
[329935573,1718845849223,-1029.15,0.00013972,2]
[329935574,1718845849232,-1044.79,0.00013972,2]
[329935575,1718845849242,-679.99,0.00013972,2]
[329935576,1718845849251,-500.0,0.00013972,2]
[329935577,1718845849261,-500.0,0.00013972,2]
[329935578,1718845849270,-579.13,0.00013972,2]
[329935579,1718845849280,-637.27,0.00013972,2]
[329935580,1718845849290,-500.0,0.00013972,2]
[329935581,1718845849299,-500.0,0.00013972,2]
[329935582,1718845849309,-921.05,0.00013972,2]
[329935583,1718845849319,-1270.41,0.00013972,2]
[329935584,1718845849329,-500.0,0.00013972,2]
[329935585,1718845849338,-1366.48,0.00013972,2]
[329935586,1718845849348,-500.0,0.00013972,2]
[329935587,1718845849358,-500.0,0.00013972,2]
[329935588,1718845849367,-684.69,0.00013972,2]
[329935589,1718845849378,-550.64,0.00013972,2]
[329935590,1718845849388,-500.0,0.00013972,2]
[329935591,1718845849408,-1003.0,0.00013972,2]
[329935592,1718845849419,-1629.45,0.00013972,2]
[329935593,1718845849428,-500.0,0.00013972,2]
[329935594,1718845849437,-554.21,0.00013972,2]
[329935595,1718845849447,-500.0,0.00013972,2]
[329935596,1718845849457,-500.0,0.00013972,2]
[329935597,1718845849466,-1250.27,0.00013972,2]
[329935598,1718845849476,-634.28,0.00013972,2]
[329935599,1718845849484,-500.0,0.00013972,2]
[329935600,1718845849494,-1489.5,0.00013972,2]
[329935601,1718845849504,-1377.77,0.00013972,2]
[329935602,1718845849513,-500.0,0.00013972,2]
[329935603,1718845849522,-500.0,0.00013972,2]
[329935604,1718845849531,-500.0,0.00013972,2]
[329935605,1718845849541,-717.24,0.00013972,2]
[329935606,1718845849550,-839.25,0.00013972,2]
[329935607,1718845849560,-500.0,0.00013972,2]
[329935608,1718845849572,-500.0,0.00013972,2]
[329935609,1718845849582,-984.76,0.00013972,2]
[329935610,1718845849593,-500.0,0.00013972,2]
[329935611,1718845849603,-500.0,0.00013972,2]
[329935612,1718845849612,-637.61,0.00013972,2]
[329935613,1718845849623,-500.0,0.00013972,2]
[329935614,1718845849633,-500.0,0.00013972,2]
[329935615,1718845849642,-500.0,0.00013972,2]
[329935616,1718845849651,-500.0,0.00013972,2]
[329935617,1718845849661,-500.0,0.00013972,2]
[329935618,1718845849670,-634.14,0.00013972,2]
[329935619,1718845849679,-953.84,0.00013972,2]
[329935620,1718845849688,-500.0,0.00013972,2]
[329935621,1718845849698,-500.0,0.00013972,2]
[329935622,1718845849707,-500.0,0.00013972,2]
[329935623,1718845849716,-996.86,0.00013972,2]
[329935624,1718845849726,-1060.06,0.00013972,2]
[329935625,1718845849735,-500.0,0.00013972,2]
[329935626,1718845849744,-1428.18,0.00013972,2]
[329935627,1718845849755,-557.48,0.00013972,2]
[329935628,1718845849767,-1342.84,0.00013972,2]
[329935629,1718845849776,-655.7,0.00013972,2]
[329935630,1718845849787,-918.46,0.00013972,2]
[329935631,1718845849796,-500.0,0.00013972,2]
[329935632,1718845849806,-576.82,0.00013972,2]
[329935633,1718845849816,-500.0,0.00013972,2]
[329935634,1718845849828,-640.77,0.00013972,2]
[329935635,1718845849838,-638.99105272,0.00013972,2]
[329935636,1718845849848,-500.0,0.00013972,2]
[329935637,1718845849857,-740.85,0.00013972,2]
[329935638,1718845849867,-782.26,0.00013972,2]
[329935639,1718845849876,-797.73,0.00013972,2]
[329935640,1718845849886,-1034.24,0.00013972,2]
[329935641,1718845849896,-500.0,0.00013972,2]
[329935642,1718845849905,-500.0,0.00013972,2]
[329935643,1718845849916,-500.0,0.00013972,2]
[329935644,1718845849925,-500.0,0.00013972,2]
[329935645,1718845849935,-500.0,0.00013972,2]
[329935646,1718845849944,-500.0,0.00013972,2]
[329935647,1718845849954,-500.0,0.00013972,2]
[329935648,1718845849963,-1249.96,0.00013972,2]
[329935649,1718845849973,-500.0,0.00013972,2]
[329935650,1718845849983,-830.9,0.00013972,2]
[329935651,1718845849992,-500.0,0.00013972,2]
[329935652,1718845850001,-500.0,0.00013972,2]
[329935653,1718845850011,-1212.11,0.00013972,2]
[329935654,1718845850020,-500.0,0.00013972,2]
[329935655,1718845850029,-500.0,0.00013972,2]
[329935656,1718845850039,-500.0,0.00013972,2]
[329935657,1718845850049,-565.13,0.00013972,2]
[329935658,1718845850059,-978.11,0.00013972,2]
[329935659,1718845850068,-861.92,0.00013972,2]
[329935660,1718845850079,-500.0,0.00013972,2]
[329935661,1718845850088,-999.53,0.00013972,2]
[329935662,1718845850098,-842.26,0.00013972,2]
[329935663,1718845850107,-500.0,0.00013972,2]
[329935664,1718845850116,-561.87,0.00013972,2]
[329935665,1718845850126,-825.82,0.00013972,2]
[329935666,1718845850136,-1227.86,0.00013972,2]
[329935667,1718845850145,-2369.14,0.00013972,2]
[329935668,1718845850155,-500.0,0.00013972,2]
[329935669,1718845850164,-500.0,0.00013972,2]
[329935670,1718845850174,-500.0,0.00013972,2]
[329935671,1718845850184,-500.0,0.00013972,2]
[329935672,1718845850193,-746.92,0.00013972,2]
[329935673,1718845850202,-1440.92,0.00013972,2]
[329935674,1718845850212,-749.7,0.00013972,2]
[329935675,1718845850221,-500.0,0.00013972,2]
[329935676,1718845850230,-625.91,0.00013972,2]
[329935677,1718845850240,-500.0,0.00013972,2]
[329935678,1718845850249,-500.0,0.00013972,2]
[329935679,1718845850259,-500.0,0.00013972,2]
[329935680,1718845850269,-500.0,0.00013972,2]
[329935681,1718845850278,-512.95,0.00013972,2]
[329935682,1718845850288,-738.15,0.00013972,2]
[329935683,1718845850297,-500.0,0.00013972,2]
[329935684,1718845850307,-500.0,0.00013972,2]
[329935685,1718845850319,-1076.57,0.00013972,2]
[329935686,1718845850329,-1423.89,0.00013972,2]
[329935687,1718845850340,-1147.07,0.00013972,2]
[329935688,1718845850352,-500.0,0.00013972,2]
[329935689,1718845850363,-500.0,0.00013972,2]
[329935690,1718845850373,-500.0,0.00013972,2]
[329935691,1718845850385,-897.22,0.00013972,2]
[329935692,1718845850396,-631.02,0.00013972,2]
[329935693,1718845850406,-1328.9,0.00013972,2]
[329935694,1718845850416,-626.48,0.00013972,2]
[329935695,1718845850427,-500.0,0.00013972,2]
[329935696,1718845850436,-500.0,0.00013972,2]
[329935697,1718845850446,-792.67,0.00013972,2]
[329935698,1718845850457,-500.0,0.00013972,2]
[329935699,1718845850467,-500.0,0.00013972,2]
[329935700,1718845850477,-803.19,0.00013972,2]
[329935701,1718845850487,-633.75,0.00013972,2]
[329935702,1718845850496,-682.2,0.00013972,2]
[329935703,1718845850506,-500.0,0.00013972,2]
[329935704,1718845850515,-500.0,0.00013972,2]
[329935705,1718845850525,-500.0,0.00013972,2]
[329935706,1718845850534,-541.91,0.00013972,2]
[329935707,1718845850543,-1270.83,0.00013972,2]
[329935708,1718845850553,-1683.41,0.00013972,2]
[329935709,1718845850563,-748.94,0.00013972,2]
[329935710,1718845850572,-500.0,0.00013972,2]
[329935711,1718845850582,-500.0,0.00013972,2]
[329935712,1718845850591,-500.0,0.00013972,2]
[329935713,1718845850602,-500.0,0.00013972,2]
[329935714,1718845850611,-1123.63,0.00013972,2]
[329935715,1718845850621,-639.76,0.00013972,2]
[329935716,1718845850630,-500.0,0.00013972,2]
[329935717,1718845850639,-738.55,0.00013972,2]
[329935718,1718845850649,-500.0,0.00013972,2]
[329935719,1718845850658,-1396.93,0.00013972,2]
[329935720,1718845850668,-455.18,0.00013972,2]
[329935721,1718845850678,-500.0,0.00013972,2]
[329935722,1718845850687,-500.0,0.00013972,2]
[329935723,1718845850697,-976.46,0.00013972,2]
[329935724,1718845850706,-591.48,0.00013972,2]
[329935725,1718845850717,-719.34,0.00013972,2]
[329935726,1718845850726,-1036.5,0.00013972,2]
[329935727,1718845850735,-1673.89,0.00013972,2]
[329935728,1718845850745,-500.0,0.00013972,2]
[329935729,1718845850754,-950.74,0.00013972,2]
[329935730,1718845850764,-563.68423467,0.00013972,2]
[329935731,1718845850774,-833.52,0.00013972,2]
[329935732,1718845850783,-500.0,0.00013972,2]
[329935733,1718845850792,-1100.55,0.00013972,2]
[329935734,1718845850803,-880.67,0.00013972,2]
[329935735,1718845850812,-616.53,0.00013972,2]
[329935736,1718845850822,-690.62,0.00013972,2]
[329935737,1718845850832,-500.0,0.00013972,2]
[329935738,1718845850843,-903.54,0.00013972,2]
[329935739,1718845850854,-500.0,0.00013972,2]
[329935740,1718845850864,-1021.8,0.00013972,2]
[329935741,1718845850873,-539.16,0.00013972,2]
[329935742,1718845850883,-507.32704624,0.00013972,2]
[329935743,1718845850893,-810.12,0.00013972,2]
[329935744,1718845850902,-500.0,0.00013972,2]
[329935745,1718845850913,-500.0,0.00013972,2]
[329935746,1718845850924,-1061.52,0.00013972,2]
[329935747,1718845850934,-610.74,0.00013972,2]
[329935748,1718845850943,-940.62,0.00013972,2]
[329935749,1718845850953,-568.61,0.00013972,2]
[329935750,1718845850962,-500.0,0.00013972,2]
[329935751,1718845850972,-778.0,0.00013972,2]
[329935752,1718845850981,-500.0,0.00013972,2]
[329935753,1718845850991,-952.16,0.00013972,2]
[329935754,1718845851001,-500.0,0.00013972,2]
[329935755,1718845851011,-568.45,0.00013972,2]
[329935756,1718845851020,-566.25,0.00013972,2]
[329935757,1718845851030,-655.26,0.00013972,2]
[329935758,1718845851040,-503.56,0.00013972,2]
[329935759,1718845851049,-500.0,0.00013972,2]
[329935760,1718845851059,-1502.42,0.00013972,2]
[329935761,1718845851068,-500.0,0.00013972,2]
[329935762,1718845851078,-500.0,0.00013972,2]
[329935763,1718845851088,-1624.36,0.00013972,2]
[329935764,1718845851098,-1436.65,0.00013972,2]
[329935765,1718845851107,-1484.84,0.00013972,2]
[329935766,1718845851116,-1205.18,0.00013972,2]
[329935767,1718845851126,-639.76,0.00013972,2]
[329935768,1718845851135,-500.0,0.00013972,2]
[329935769,1718845851145,-500.0,0.00013972,2]
[329935770,1718845851154,-2675.81,0.00013972,2]
[329935771,1718845851165,-500.0,0.00013972,2]
[329935772,1718845851174,-500.0,0.00013972,2]
[329935773,1718845851184,-2287.52,0.00013972,2]
[329935774,1718845851194,-500.0,0.00013972,2]
[329935775,1718845851203,-683.33,0.00013972,2]
[329935776,1718845851212,-1406.93,0.00013972,2]
[329935777,1718845851222,-13094.15,0.00013972,2]
[329935778,1718845851231,-572.46,0.00013972,2]
[329935779,1718845851241,-832.93,0.00013972,2]
[329935780,1718845851251,-258.98468726,0.00013972,2]
[329935781,1718845851261,-2457.99,0.00013972,2]
[329935782,1718845851270,-892.22,0.00013972,2]
[329935783,1718845851280,-655.8,0.00013972,2]
[329935784,1718845851289,-500.0,0.00013972,2]
[329935785,1718845851299,-13940.04,0.00013972,2]
[329935786,1718845851308,-514.74,0.00013972,2]
[329935787,1718845851318,-732.93,0.00013972,2]
[329935788,1718845851328,-2287.54,0.00013972,2]
[329935789,1718845851337,-627.01,0.00013972,2]
[329935790,1718845851347,-500.0,0.00013972,2]
[329935791,1718845851359,-43401.29,0.00013972,2]
[329935792,1718845851369,-1810.34,0.00013972,2]
[329935793,1718845851380,-743.29,0.00013972,2]
[329935794,1718845851391,-2227.5,0.00013972,2]
[329935795,1718845851403,-1286.03,0.00013972,2]
[329935796,1718845851413,-1016.68,0.00013972,2]
[329935797,1718845851423,-1860.7,0.00013972,2]
[329935798,1718845851433,-500.0,0.00013972,2]
[329935799,1718845851453,-685.59,0.00013972,2]
[329935800,1718845851463,-500.0,0.00013972,2]
[329935801,1718845851476,-564.1,0.00013972,2]
[329935802,1718845851486,-690.69,0.00013972,2]
[329935803,1718845851495,-1566.82,0.00013972,2]
[329935804,1718845851505,-500.0,0.00013972,2]
[329935805,1718845851515,-3090.63,0.00013972,2]
[329935806,1718845851524,-520.33,0.00013972,2]
[329935807,1718845851535,-1538.72,0.00013972,2]
[329935808,1718845851545,-856.94,0.00013972,2]
[329935809,1718845851555,-4309.34,0.00013972,2]
[329935810,1718845851566,-1329.54,0.00013972,2]
[329935811,1718845851576,-659.14,0.00013972,2]
[329935812,1718845851586,-967.54,0.00013972,2]
[329935813,1718845851596,-500.0,0.00013972,2]
[329935814,1718845851608,-565.53,0.00013972,2]
[329935815,1718845851618,-500.0,0.00013972,2]
[329935816,1718845851628,-754.87,0.00013972,2]
[329935817,1718845851638,-500.0,0.00013972,2]
[329935818,1718845851648,-508.16,0.00013972,2]
[329935819,1718845851658,-4678.09,0.00013972,2]
[329935820,1718845851668,-47725.85,0.00013972,2]
[329935821,1718845851678,-3775.62,0.00013972,2]
[329935822,1718845851688,-500.0,0.00013972,2]
[329935823,1718845851697,-500.0,0.00013972,2]
[329935824,1718845851707,-1217.33,0.00013972,2]
[329935825,1718845851717,-1022.07,0.00013972,2]
[329935826,1718845851727,-620.18,0.00013972,2]
[329935827,1718845851737,-749.27,0.00013972,2]
[329935828,1718845851746,-500.0,0.00013972,2]
[329935829,1718845851756,-506.38766072,0.00013972,2]
[329935830,1718845851766,-1041.95,0.00013972,2]
[329935831,1718845851776,-500.0,0.00013972,2]
[329935832,1718845851786,-500.0,0.00013972,2]
[329935833,1718845851795,-2379.34,0.00013972,2]
[329935834,1718845851806,-3432.26,0.00013972,2]
[329935835,1718845851815,-1102.18,0.00013972,2]
[329935836,1718845851826,-17841.31,0.00013972,2]
[329935837,1718845851836,-609.49,0.00013972,2]
[329935838,1718845851845,-21223.02,0.00013972,2]
[329935839,1718845851856,-1042.26,0.00013972,2]
[329935840,1718845851866,-500.0,0.00013972,2]
[329935841,1718845851876,-500.0,0.00013972,2]
[329935842,1718845851886,-1625.64,0.00013972,2]
[329935843,1718845851895,-500.0,0.00013972,2]
[329935844,1718845851905,-500.0,0.00013972,2]
[329935845,1718845851915,-4548.48,0.00013972,2]
[329935846,1718845851924,-690.16,0.00013972,2]
[329935847,1718845851934,-588.72,0.00013972,2]
[329935848,1718845851944,-500.0,0.00013972,2]
[329935849,1718845851954,-720.2,0.00013972,2]
[329935850,1718845851964,-12831.63,0.00013972,2]
[329935851,1718845851974,-651.8,0.00013972,2]
[329935852,1718845851984,-865.11,0.00013972,2]
[329935853,1718845851993,-685.25,0.00013972,2]
[329935854,1718845852003,-6460.63,0.00013972,2]
[329935855,1718845852013,-2630.37,0.00013972,2]
[329935856,1718845852022,-164.59179223,0.00013972,2]
[329935857,1718845852032,-2679.5,0.00013972,2]
[329935858,1718845852041,-1087.61,0.00013972,2]
[329935859,1718845852051,-1265.02,0.00013972,2]
[329935860,1718845852060,-500.0,0.00013972,2]
[329935861,1718845852070,-500.0,0.00013972,2]
[329935862,1718845852079,-575.18,0.00013972,2]
[329935863,1718845852089,-1667.91,0.00013972,2]
[329935864,1718845852098,-1136.7,0.00013972,2]
[329935865,1718845852109,-5682.43,0.00013972,2]
[329935866,1718845852119,-516.34,0.00013972,2]
[329935867,1718845852129,-7722.65,0.00013972,2]
[329935868,1718845852138,-500.0,0.00013972,2]
[329935869,1718845852147,-1264.42,0.00013972,2]
[329935870,1718845852157,-500.0,0.00013972,2]
[329935871,1718845852167,-500.0,0.00013972,2]
[329935872,1718845852176,-717.76,0.00013972,2]
[329935873,1718845852186,-500.0,0.00013972,2]
[329935874,1718845852196,-1771.74,0.00013972,2]
[329935875,1718845852205,-6742.67,0.00013972,2]
[329935876,1718845852215,-980.95,0.00013972,2]
[329935877,1718845852225,-500.0,0.00013972,2]
[329935878,1718845852234,-500.0,0.00013972,2]
[329935879,1718845852244,-951.81,0.00013972,2]
[329935880,1718845852254,-1741.65,0.00013972,2]
[329935881,1718845852263,-982.93,0.00013972,2]
[329935882,1718845852273,-672.48,0.00013972,2]
[329935883,1718845852282,-4045.62,0.00013972,2]
[329935884,1718845852293,-587.32,0.00013972,2]
[329935885,1718845852303,-748.55,0.00013972,2]
[329935886,1718845852313,-3672.92,0.00013972,2]
[329935887,1718845852322,-500.0,0.00013972,2]
[329935888,1718845852332,-624.46,0.00013972,2]
[329935889,1718845852343,-500.0,0.00013972,2]
[329935890,1718845852355,-2329.72,0.00013972,2]
[329935891,1718845852364,-1963.17,0.00013972,2]
[329935892,1718845852374,-946.27,0.00013972,2]